Cogmind - Beta 14 @@@ ROGUE MODE // 2024.08.09 @ 16:57:10 Player: Sgt. SmokeWeed Result: Self-destructed Performance ------------- Evolutions (1) 500 Regions Visited (5) 1000 Robots Destroyed (36) 180 Value Destroyed (817) 817 Prototype IDs (25) 500 Alien Tech Used (0) 0 Bonus (427) 427 TOTAL SCORE: 3424 Bonus ------- Follower Combat Kills 127 Aligned with FarCom 300 Cogmind --------- Core Integrity 334/400 Matter 300/300 Energy 280/280 System Corruption 0% Temperature Cool (0) Movement Treading (320) Ox2 Location -9/Exiles Parts ------- > --- POWER (1) -------- Heavy Ion Engine > --- PROPULSION (2) --- Light Treads > --- UTILITY (4) ------ Heavy Armor Plating Heavy Armor Plating > --- WEAPON (2) ------- Particle Gun Mini Grenade Launcher > --- INVENTORY (5) ---- Improved Ion Engine Rocket Launcher Peak State ------------ > --- POWER ------------ Heavy Ion Engine > --- PROPULSION ------- Light Treads Light Treads > --- UTILITY ---------- Heavy Armor Plating Heavy Armor Plating > --- WEAPON ----------- Beamcaster Rocket Launcher > --- INVENTORY -------- Improved Ion Engine Mini Grenade Launcher [Rating: 24] Favorites ----------- Power Heavy Ion Engine Engine Heavy Ion Engine Propulsion Light Treads Treads Light Treads Utility Heavy Armor Plating Protection Heavy Armor Plating Weapon Rocket Launcher Energy Gun Medium Laser Ballistic Gun Light Assault Rifle Launcher Rocket Launcher Build | -11 -10 -10 -9 -9 -9 ------- Run | Yrd Mat Min Mat Min Exi Slots Evolved 2 | . . . 2 . . Power . | . . . . . . Propulsion . | . . . . . . Utility 2 | . . . 2 . . Weapon . | . . . . . . Parts Attached 17 | 5 2 1 5 4 . Power 2 | 1 . . 1 . . Engine 2 | 1 . . 1 . . Core . | . . . . . . Reactor . | . . . . . . Propulsion 4 | 2 1 . 1 . . Treads 4 | 2 1 . 1 . . Leg . | . . . . . . Wheel . | . . . . . . Hover . | . . . . . . Flight . | . . . . . . Utility 2 | . . . 2 . . Device . | . . . . . . Storage . | . . . . . . Processor . | . . . . . . Hackware . | . . . . . . Protection 2 | . . . 2 . . Artifact . | . . . . . . Weapon 9 | 2 1 1 1 4 . Energy Gun 6 | 1 1 . 1 3 . Energy Cannon . | . . . . . . Ballistic Gun 1 | 1 . . . . . Ballistic Cannon . | . . . . . . Launcher 2 | . . 1 . 1 . Special Weapon . | . . . . . . Impact Weapon . | . . . . . . Slashing Weapon . | . . . . . . Piercing Weapon . | . . . . . . Special Melee Weapon . | . . . . . . Unidentified Prototypes 2 | . . . 2 . . Parts Lost 2 | . . . 1 1 . Power 1 | . . . 1 . . Propulsion 1 | . . . . 1 . Utility . | . . . . . . Weapon . | . . . . . . Highest Loss Streak 1 | . . . 1 1 . To Critical Strikes . | . . . . . . Average Slot Usage (%) 66 | . 71 69 57 72 66 Engine 11 | . 14 14 10 11 11 Treads 18 | . 28 28 19 17 11 Protection 13 | . . . 5 22 22 Energy Gun 12 | . 19 18 11 11 11 Ballistic Gun 1 | . 8 . . . . Launcher 9 | . . 8 11 11 11 Peak Build Rating 24 | 5 5 6 22 24 20 Average Rating 15 | 4 4 5 10 21 20 On Entrance 9 | . 5 5 6 22 20 Naked Turns . | . . . . . . Heaviest Build 47 | 8 9 11 45 47 42 Greatest Support 40 | 40 40 40 40 40 20 Greatest Overweight (x) 2 | . . . 1 2 2 Average Overweight (x) . | . . . . 1 2 Largest Inventory Capacity 5 | 5 5 5 5 5 5 Average Capacity 5 | 5 5 5 5 5 5 Most Carried 2 | . 1 1 2 2 2 Average Carried 1 | . . 1 1 1 2 Final Capacity 5 | 5 5 5 5 5 5 Final Carried 2 | . 1 1 1 2 2 Class Distribution -------------------- 100% | Mutant Dominant Class ---------------- Mutant | -10/Materials Mutant | -10/Mines Mutant | -9/Materials Mutant | -9/Mines Mutant | -9/Exiles Resources | -11 -10 -10 -9 -9 -9 ----------- Run | Yrd Mat Min Mat Min Exi Matter Collected 605 | 243 39 . 132 191 . Remotely . | . . . . . . Salvage Created 813 | . 125 . 484 204 . Parts 66 | . 6 . 33 27 . Haulers Intercepted 2 | . . . 2 . . Recyclers Shooed . | . . . . . . Parts Field Recycled . | . . . . . . Retrieved Matter . | . . . . . . Parts Self-Destructed . | . . . . . . Prevented . | . . . . . . Kills | -11 -10 -10 -9 -9 -9 ------- Run | Yrd Mat Min Mat Min Exi Combat Hostiles Destroyed 28 | . 5 . 12 11 . Guns 11 | . 5 . 3 3 . AOE 17 | . . . 9 8 . Classes Destroyed 10 | . 2 . 6 2 . Builder 4 | . . . 2 2 . Tunneler 2 | . . . . 2 . Hauler 2 | . . . 2 . . Operator 1 | . . . 1 . . Watcher 1 | . . . 1 . . Swarmer 10 | . 3 . 4 3 . Grunt 14 | . 2 . 6 6 . Duelist 1 | . . . 1 . . Sentry 1 | . . . 1 . . Assembled 2 | . . . . 2 . Best Kill Streak 11 | . 2 . 11 4 . Combat Bots Only 10 | . 2 . 10 3 . Max Kills in Single Turn 5 | . 1 . 5 2 . Gunslinging . | . . . . . . Exploded 4 | . . . 4 2 . Melee . | . . . . . . Uniques/NPCs Destroyed . | . . . . . . Combat | -11 -10 -10 -9 -9 -9 -------- Run | Yrd Mat Min Mat Min Exi Hostile Shots Fired 128 | . 40 . 16 72 . Missed 24 | . 8 . 4 12 . Damage Taken 1337 | . 332 . 221 784 . Core 153 | . 87 . 43 23 . Absorbed by Shields . | . . . . . . Core Remaining (%) 82 | 100 . 65 . . . Volleys Fired 86 | . 20 . 33 33 . Largest 2 | . 2 . 2 2 . Hottest 108 | . 100 . 83 108 . Shots Fired 117 | . 40 . 40 37 . Gun 95 | . 40 . 32 23 . Cannon . | . . . . . . Launcher 22 | . . . 8 14 . Special . | . . . . . . Kinetic 12 | . 12 . . . . Thermal 62 | . 28 . 12 22 . Explosive 22 | . . . 8 14 . Electromagnetic 21 | . . . 20 1 . Robot Hit Streak 11 | . 4 . 11 6 . Robot Miss Streak 4 | . 3 . 3 4 . Penetration Max . | . . . . . . Secondary Targets 1 | . 1 . . . . Max Gunslinging Chain 1 | . 1 . . . . Shots Hit Robots 71 | . 22 . 31 18 . Core Hits 51 | . 9 . 23 19 . Critical Kills . | . . . . . . Critical Parts Destroyed . | . . . . . . Critical Strikes 4 | . 2 . 1 1 . Burn 4 | . 2 . 1 1 . Melee Attacks . | . . . . . . Impact . | . . . . . . Slashing . | . . . . . . Piercing . | . . . . . . Sneak Attacks . | . . . . . . Combat Hostiles . | . . . . . . Follow-up Attacks . | . . . . . . Damage Inflicted 2640 | . 270 . 1192 1178 . Guns 892 | . 270 . 417 205 . Cannons . | . . . . . . Explosions 1748 | . . . 775 973 . Melee . | . . . . . . Ramming . | . . . . . . Kinetic 31 | . 31 . . . . Thermal 654 | . 239 . 219 196 . Explosive 1604 | . . . 631 973 . Electromagnetic 351 | . . . 342 9 . Impact . | . . . . . . Slashing . | . . . . . . Piercing . | . . . . . . Highest Corruption . | . . . . . . Average Corruption . | . . . . . . Corruption Purged . | . . . . . . Corruption Blocked . | . . . . . . Overload Shots . | . . . . . . Overflow Damage 125 | . . . 16 109 . Projectiles . | . . . . . . Explosions 125 | . . . 16 109 . Melee . | . . . . . . Knockbacks . | . . . . . . Impact . | . . . . . . Kinetic . | . . . . . . Secondary . | . . . . . . Self-Inflicted Damage 86 | . . . 52 34 . Shots 3 | . . . 2 1 . Rammed 1 | . . . . 1 . Targets Rammed 1 | . . . . 1 . Kicked . | . . . . . . Crushed . | . . . . . . Highest Temperature 406 | . 336 . 132 406 . Average Temperature 123 | . 110 . 33 156 . Received Heat Transfer 507 | . 108 . 57 342 . Effects 5 | . 1 . . 4 . Shutdowns 1 | . . . . 1 . Energy Bleed 2 | . 1 . . 1 . Interference 1 | . . . . 1 . Damage (minor) 1 | . . . . 1 . Siege Activations . | . . . . . . Robots Corrupted . | . . . . . . Combat Hostiles . | . . . . . . Parts Fried 4 | . . . 4 . . Impact Corruptions . | . . . . . . Robots Melted . | . . . . . . Combat Hostiles . | . . . . . . Parts Melted 2 | . 1 . 1 . . Heat Transferred 1860 | . 851 . 546 463 . Parts Sabotaged . | . . . . . . Parts Stolen . | . . . . . . Parts Stripped . | . . . . . . Power Chain Reactions 3 | . . . 3 . . Alert | -11 -10 -10 -9 -9 -9 ------- Run | Yrd Mat Min Mat Min Exi Peak Influence 375 | . 165 64 375 335 . Initial 64 | . . 64 24 64 . Average 149 | . 103 64 158 174 . Maximum Alert Level 1 | . . . 1 1 . Low Security (%) 64 | 100 100 100 58 52 . Level 1 35 | . . . 41 47 . Level 2 . | . . . . . . Level 3 . | . . . . . . Level 4 . | . . . . . . Level 5 . | . . . . . . High Security . | . . . . . . Max Security . | . . . . . . Squads Dispatched 3 | . . . 2 1 . Investigation 1 | . . . 1 . . Extermination . | . . . . . . Reinforcement 1 | . . . 1 . . Assault 1 | . . . . 1 . Garrison . | . . . . . . Intercept . | . . . . . . Searches Triggered . | . . . . . . Construction Impeded . | . . . . . . Haulers Reinforced . | . . . . . . Active Scanning Responses . | . . . . . . Cargo Convoy Interrupts . | . . . . . . Stealth | -11 -10 -10 -9 -9 -9 --------- Run | Yrd Mat Min Mat Min Exi Distress Signals 1 | . . . . 1 . Communications Jammed . | . . . . . . Distress Signals . | . . . . . . Times Spotted 43 | . 12 . 15 16 . Peak Tracking Total 5 | . 5 . 5 5 . Tactical Retreats 4 | . 2 . 1 1 . Traps | -11 -10 -10 -9 -9 -9 ------- Run | Yrd Mat Min Mat Min Exi Traps Triggered 1 | . . . 1 . . Indirectly . | . . . . . . Trap Hack Attempts . | . . . . . . Triggered . | . . . . . . Disarmed . | . . . . . . Reprogrammed . | . . . . . . Reused . | . . . . . . Traps Extracted . | . . . . . . Installed . | . . . . . . Triggered . | . . . . . . Machines | -11 -10 -10 -9 -9 -9 ---------- Run | Yrd Mat Min Mat Min Exi Machines Disabled 4 | . . . 3 1 . Max in Single Turn 2 | . . . 2 1 . Machines Repaired . | . . . . . . Machines Dismantled . | . . . . . . Machines Sabotaged . | . . . . . . Overloaded Fab Kills . | . . . . . . Hacking | -11 -10 -10 -9 -9 -9 --------- Run | Yrd Mat Min Mat Min Exi Machines Accessed 4 | . . . 2 1 1 Terminals 2 | . . . 2 . . Fabricators . | . . . . . . Repair Stations . | . . . . . . Recycling Units . | . . . . . . Scanalyzers . | . . . . . . Garrison Access . | . . . . . . Total Hacks 5 | . . . 3 1 1 Successful 3 | . . . 1 1 1 Failed 2 | . . . 2 . . Catastrophic 1 | . . . 1 . . Database Lockouts . | . . . . . . Manual 4 | . . . 3 . 1 Terminals 3 | . . . 3 . . Fabricators . | . . . . . . Repair Stations . | . . . . . . Recycling Units . | . . . . . . Scanalyzers . | . . . . . . Garrison Access . | . . . . . . Terminal Hacks 3 | . . . 1 1 1 Open Door 1 | . . . . 1 . Branch Access Points 1 | . . . 1 . . Derelict Proto ID Bank 1 | . . . . . 1 Fabricator Hacks . | . . . . . . Repair Station Hacks . | . . . . . . Recycling Unit Hacks . | . . . . . . Scanalyzer . | . . . . . . Garrison Access Hacks . | . . . . . . Unauthorized Hacks . | . . . . . . Terminals . | . . . . . . Fabricators . | . . . . . . Repair Stations . | . . . . . . Recycling Units . | . . . . . . Scanalyzers . | . . . . . . Garrison Access . | . . . . . . Data Cores Recovered . | . . . . . . Used . | . . . . . . Hacking Detections 1 | . . . 1 . . Full Trace Events . | . . . . . . Feedback Events . | . . . . . . Feedback Blocked . | . . . . . . Robot Schematics Acquired . | . . . . . . Robots Built . | . . . . . . Authchips . | . . . . . . Time . | . . . . . . Total Robot Build Rating . | . . . . . . Part Schematics Acquired . | . . . . . . Parts Built . | . . . . . . Authchips . | . . . . . . Time . | . . . . . . Total Part Build Rating . | . . . . . . Parts Repaired . | . . . . . . Time . | . . . . . . Parts Recycled . | . . . . . . Recycled Matter . | . . . . . . Retrieved Matter . | . . . . . . Retrieved Components . | . . . . . . Parts Scanalyzed . | . . . . . . Part Schematics Acquired . | . . . . . . Parts Damaged . | . . . . . . Bothacking | -11 -10 -10 -9 -9 -9 ------------ Run | Yrd Mat Min Mat Min Exi Used RIF Installer . | . . . . . . Robots Hacked . | . . . . . . Non-combat . | . . . . . . Combat . | . . . . . . Robot Hacks Applied . | . . . . . . Relay Couplers Released . | . . . . . . Fabnet Peak Effective % . | . . . . . . Robots Rewired . | . . . . . . Allies Hacked . | . . . . . . Hacks Repelled . | . . . . . . Allies | -11 -10 -10 -9 -9 -9 -------- Run | Yrd Mat Min Mat Min Exi Total Allies 1 | . . . . 1 . Largest Group 1 | . . . . 1 . Highest-Rated Group 31 | . . . . 31 . Highest-Rated Ally 31 | . . . . 31 . Total Orders . | . . . . . . Ally Attacks 14 | . . . . 14 . Total Damage 226 | . . . . 226 . Kills 5 | . . . . 5 . Allies Corrupted . | . . . . . . Allies Melted . | . . . . . . Intel | -11 -10 -10 -9 -9 -9 ------- Run | Yrd Mat Min Mat Min Exi Robot Analysis Total . | . . . . . . Derelict Logs Recovered 1 | . . . . 1 . Drone Launches . | . . . . . . Drone Recoveries . | . . . . . . Exploration | -11 -10 -10 -9 -9 -9 ------------- Run | Yrd Mat Min Mat Min Exi Turns Passed 3021 | 85 326 129 911 1192 378 Spaces Moved 1021 | 52 111 79 266 401 112 Core 4 | 4 . . . . . Treads 1017 | 48 111 79 266 401 112 Legs . | . . . . . . Wheels . | . . . . . . Hover . | . . . . . . Flight . | . . . . . . Fastest Speed 50 | 50 160 160 160 240 320 Average Speed 226 | 151 160 160 186 267 320 Slowest Speed 320 | 160 160 160 240 320 320 Overloaded Moves . | . . . . . . Propulsion Burnouts . | . . . . . . Robots Hopped . | . . . . . . Cave-ins Triggered . | . . . . . . Exploration Rate (%) 32 | 4 25 30 33 65 39 Regions Visited 5 Branch Regions 3 Pre-discovered Areas 1 | . . 1 . . . Known Exits Taken 1 | . . . 1 . . Unknown Exits Taken 4 | 1 1 1 . 1 . Scrap Searched 2 | . . 1 . 1 . Spaces Dug 7 | . . . 7 . . Terrain Destroyed 196 | . . . 90 106 . Melee . | . . . . . . Projectile . | . . . . . . AOE 196 | . . . 90 106 . Terrain Rammed . | . . . . . . Walls Destroyed . | . . . . . . Machines Disabled . | . . . . . . Actions | -11 -10 -10 -9 -9 -9 --------- Run | Yrd Mat Min Mat Min Exi Total 1611 | 56 221 82 640 481 131 Wait 484 | . 88 2 335 40 19 Move 1016 | 51 110 78 265 400 112 Hop . | . . . . . . Pick Up 2 | . . . 1 1 . Fast Attach 13 | 5 1 1 4 2 . Attach 1 | . . . 1 . . Detach . | . . . . . . Swap 3 | . 1 . . 2 . Drop 5 | . 1 1 1 2 . Fire 86 | . 20 . 33 33 . Melee . | . . . . . . Ram . | . . . . . . Kick . | . . . . . . Crush 1 | . . . . 1 . Escape Stasis . | . . . . . . Rewire . | . . . . . . Trap . | . . . . . . Miscellaneous . | . . . . . . Route ------- -11/Scrapyard -10/Materials -10/Mines -9/Materials (discovered 3 exits: [*Mat] / *Min x2) -9/Mines (discovered 3 exits: [*Mat x2] / *Exi) -9/Exiles History --------- Turn | Location | Event 5 | -11/Scrapyard | Discovered new exit (range 16) 86 | -11/Scrapyard | Entered Materials 313 | -10/Materials | Build established: Mutant 383 | -10/Materials | Discovered new exit (range 15) 412 | -10/Materials | Entered Mines 413 | -10/Mines | Learned location of Storage (-7) 444 | -10/Mines | Received a Rocket Launcher from a helpful Derelict 520 | -10/Mines | Discovered new exit (range 13) 541 | -10/Mines | Entered Materials 541 | -9/Materials | Evolved 2 slots: Utility x2 958 | -9/Materials | Destroyed 10 combat bots 970 | -9/Materials | Identified exit to Mines 1311 | -9/Materials | Discovered new exit (range 16) 1452 | -9/Materials | Entered Mines 1464 | -9/Mines | Met a Derelict bent on vengeance 1622 | -9/Mines | Found the Drone Emporium 1961 | -9/Mines | Met a Derelict testing a Signal Generator 2082 | -9/Mines | Discovered new exit (range 9) 2097 | -9/Mines | Excavation squad dispatched 2097 | -9/Mines | A large section of the Mines collapsed 2106 | -9/Mines | Learned Materials stockpile data 2278 | -9/Mines | Discovered new exit (range 7) 2628 | -9/Mines | Deemed a non-threat by the Exiles lab entrance 2631 | -9/Mines | Discovered new exit (range 5) 2644 | -9/Mines | Entered Exiles 2724 | -9/Exiles | Met 8R-AWN 2782 | -9/Exiles | Met EX-HEX 2872 | -9/Exiles | Met EX-BIN 2910 | -9/Exiles | Aligned with FarCom system 2913 | -9/Exiles | Given EX-Vault access code 2987 | -9/Exiles | Opened EX-Vault 3022 | -9/Exiles | Self-destructed Last Messages --------------- Modified TNC 0b10 Alert Chip Cloak of Protection Skeleton Box Trap Reconfigurator Supersonic Drone Bay Army-in-a-Box PSU Rigger Chronowheel AWS/Thermal Latent Energy Streamer Gui. Plasma Cannon Firepult YOLO Cannon AWS/Gauss XL Autogun Array AWS/Autocannon Field Lobotomy Kit Longsword +1 Deploy-a-Sentry Map ----- +----------------------------------------------------+ | | | | | | | | | | | | | | | | | | | | | | | | | | | | | | | | | | | | | | | | | | | ?????????????????????####?####???????????????????? | | ?????????????????????# # #???????????????????? | | ?????????????????????# ! X ! #???????????????????? | | ?????????????????????# ! #???????????????????? | | ?????????????????????# @ #???????????????????? | | ?????????????????????## ##???????????????????? | | ?????????????????????#X #????????????????????? | | ?????????????????????## #????????????????????? | | ??????????????????????# #????????????????????? | | ??????????????????????# #????##??????????????? | | ??????????????????????# #??"""""?????????????? | | ??????????????????????# ## """?????????????? | | ??????????????????????# X""?????????????? | | ??????????????????????# ## """?????????????? | | ?????????????????###??# #??"""""?????????????? | | ????????????????"""""?# #???###??????????????? | | ????????????????""" ## #????????????????????? | | ??????????????#""X" #????????????????????? | | ??????????????#" #????????????????????? | | ??????????????#" ## #????????????????????? | | ??????????????#""""""?# #?#########??????????? | | ????????????????"###??# #?#"""""""#??????????? | | ??????????????????????# #?#"""""""#??????????? | | ??????????????????????# #?#"""""""#??????????? | | ?????????????????????## ###"" """"#??????????? | | ?????????????????????#" """"#??????????? | | ?????????????????????#" """#??????????? | | ?????????????????????#" """#??????????? | | ?????????????????????#" """#??????????? | +----------------------------------------------------+ Best States ------------- Heat Dissipation 28 Energy Generation 14 Energy Capacity 280 Matter Stores 300 Matter Capacity 300 Sight Range 16 Terrain Scan Density 10 Armor Coverage 1200 Evasion (%) 40 Recoil Reduction 2 Item Schematics ----------------- None Robot Schematics ------------------ None Fabricated ------------ Nothing Alien Tech Used ----------------- None Achievements -------------- None Challenges ------------ None Game ------ Seed ExplosiveCorruptionReactor Manual? 0 Play Time 00:11:15 Cumulative 70.0 hours Start 2024.08.09 @ 16:46:32 End 2024.08.09 @ 16:57:10 Sessions 1 Manual Loads 0 Difficulty Rogue Special Mode None Game No. 169 Rogue 94 Adventurer 75 Explorer 0 Win Type - Total 0 Types 0/0/0/0/0/0/0/0/0 Lore% 39 Gallery% 42 Achievement% 35 Wizard Run 0 Options --------- Layout 0 ASCII 0 Keyboard 0 Movement Mouse Keybinds 0 Fullscreen 1 Font 24/Smallcaps Map View 76x50 Zoom Use 0% Tactical HUD 0 Map Filters NONE Filters NONE Steam 1 RUN: 0c301f07-2d60-41fb-b30c-a97a3d84d672